Cogmind - Beta 16 @@@ ROGUE MODE // 2025.11.14 @ 17:19:48 Player: carrera Result: Destroyed by S-27 Virus with Autogun Performance ------------- Evolutions (5) 2500 Regions Visited (11) 2200 Robots Destroyed (174) 870 Value Destroyed (5611) 5611 Prototype IDs (28) 560 Alien Tech Used (0) 0 Bonus (408) 408 TOTAL SCORE: 12149 Bonus ------- Follower Combat Kills 108 Met Data Miner 300 Cogmind --------- Core Integrity 0/1000 Matter 35/300 Energy 84/100 System Corruption 12% Temperature Cool (0) Movement Core (100) Ox1 Location -5/Extension Parts ------- > --- POWER (2) -------- (None) > --- PROPULSION (5) --- (None) > --- UTILITY (7) ------ Advanced Signal Interpreter Makeshift Hacking Suite System Shield > --- WEAPON (3) ------- Phasing Sabre > --- INVENTORY (5) ---- Advanced Heat Sink Energy Filter Microactuators Transmission Jammer Precision Rocket Launcher Peak State ------------ > --- POWER ------------ Angular Momentum Engine F-cell Engine > --- PROPULSION ------- Carbon-fiber Leg Carbon-fiber Leg Flexi-carbon Leg Flexi-carbon Leg Flexi-carbon Leg > --- UTILITY ---------- Large Storage Unit Seismic Detector Microactuators Improved Heavy Armor Plating Layered Light Armor Plating Makeshift Hacking Suite > --- WEAPON ----------- Precision Assault Rifle Coil Gun KE Penetrator > --- INVENTORY -------- Light Angular Momentum Engine Flexi-carbon Leg Advanced Heat Sink Advanced Signal Interpreter Advanced Terrain Scanner Transmission Jammer Improved Light Armor Plating Improved Light Armor Plating Advanced Hacking Suite Precision Assault Rifle Gauss Cannon Precision Rocket Launcher Scatter Rocket Array [Rating: 78] Favorites ----------- Power Micro Nuclear Core Engine F-cell Engine Power Core Micro Nuclear Core Propulsion Carbon-fiber Leg Treads Light Treads Leg Carbon-fiber Leg Wheel Compact Wheel Hover Unit Improved Gravmag System Utility Large Storage Unit Device Seismic Detector Storage Large Storage Unit Processor Advanced Targeting Computer Hackware Makeshift Hacking Suite Protection Improved Light Armor Plating Weapon Precision Assault Rifle Energy Gun Heavy EM Shotgun Energy Cannon Long-range Proton Cannon Ballistic Gun Precision Assault Rifle Ballistic Cannon Gauss Cannon Launcher Heavy Rocket Launcher Special Weapon Mining Laser Impact Weapon Heavy Flail Slashing Weapon Greatsword Build | -11 -10 -10 -8 -7 -7 -7 -7 -6 -6 -5 -5 ------- Run | Yrd Mat Sub Mat Fac Low Low Dat Pro Fac Fac Ext Slots Evolved 10 | . . . 4 2 . . . . 2 2 . Power 1 | . . . . . . . . . 1 . . Propulsion 3 | . . . 2 . . . . . . 1 . Utility 5 | . . . 1 2 . . . . 1 1 . Weapon 1 | . . . 1 . . . . . . . . Parts Attached 173 | 7 4 8 55 25 7 3 . 4 38 21 1 Power 20 | 1 . 1 6 3 . . . . 6 3 . Engine 13 | 1 . 1 4 2 . . . . 4 1 . Core 7 | . . . 2 1 . . . . 2 2 . Reactor . | . . . . . . . . . . . . Propulsion 51 | 2 . 3 20 4 2 1 . 1 13 5 . Treads 7 | 2 . . . . . . . . 5 . . Leg 30 | . . 1 13 4 2 1 . . 5 4 . Wheel 9 | . . 2 3 . . . . 1 3 . . Hover 5 | . . . 4 . . . . . . 1 . Flight . | . . . . . . . . . . . . Utility 54 | 2 2 . 11 8 4 2 . 3 14 8 . Device 15 | 1 1 . 1 3 2 . . 1 5 1 . Storage 5 | 1 1 . 2 . 1 . . . . . . Processor 7 | . . . 1 . 1 1 . . 3 1 . Hackware 11 | . . . 4 2 . . . . 2 3 . Protection 16 | . . . 3 3 . 1 . 2 4 3 . Artifact . | . . . . . . . . . . . . Weapon 48 | 2 2 4 18 10 1 . . . 5 5 1 Energy Gun 5 | . . . 5 . . . . . . . . Energy Cannon 1 | . . . . . . . . . . 1 . Ballistic Gun 25 | 2 2 2 8 6 . . . . 2 3 . Ballistic Cannon 2 | . . . 1 1 . . . . . . . Launcher 5 | . . 1 1 . 1 . . . 2 . . Special Weapon 1 | . . 1 . . . . . . . . . Impact Weapon 2 | . . . 1 . . . . . . 1 . Slashing Weapon 7 | . . . 2 3 . . . . 1 . 1 Piercing Weapon . | . . . . . . . . . . . . Special Melee Weapon . | . . . . . . . . . . . . Unidentified Prototypes 13 | . . . 9 2 . . . . 2 . . Corrupted Parts 1 | . . . . . . . . . . 1 . System Corruption 3 | . . . . . . . . . . 3 . Parts Lost 70 | . . 7 14 2 . . . 7 12 27 1 Power 7 | . . 1 1 . . . . 1 . 4 . Propulsion 27 | . . 3 8 . . . . 2 6 7 1 Utility 18 | . . . 3 2 . . . 3 2 8 . Weapon 18 | . . 3 2 . . . . 1 4 8 . Highest Loss Streak 21 | . . 6 5 2 . . . 5 4 21 1 To Critical Strikes 1 | . . 1 . . . . . . . . . Average Backups 12 | 5 9 9 12 14 14 14 14 11 12 12 4 Power . | . 1 . . . . . . . . 1 . Propulsion 1 | 3 3 2 . 1 1 1 1 . 1 . . Utility 4 | . 1 2 4 5 3 6 6 4 5 6 4 Weapon 5 | 1 3 3 5 7 7 7 7 6 5 3 . Tool/Special . | . . . . . . . . . . . . Unused Backups 33 | . 2 . 18 4 . . . . 6 1 2 Power 5 | . . . 3 . . . . . 1 1 . Propulsion 5 | . 1 . 2 . . . . . 2 . . Utility 13 | . . . 7 3 . . . . 1 . 2 Weapon 10 | . 1 . 6 1 . . . . 2 . . Tool/Special . | . . . . . . . . . . . . Average Slot Usage (%) 92 | . 99 98 90 96 99 99 86 90 86 85 23 Engine 6 | . 14 13 7 5 . . . . 9 7 . Core 2 | . . . . 1 7 7 7 3 1 2 . Treads 5 | . 28 22 . . . . . . 9 1 . Leg 19 | . . 1 25 30 30 30 30 26 7 24 . Wheel 1 | . . 2 2 . . . . . 5 . . Device 8 | . 13 14 2 8 8 4 7 8 8 9 . Storage 8 | . 14 14 9 7 7 7 7 7 5 4 . Processor 3 | . . . 1 . 5 7 7 7 6 . 5 Hackware 4 | . . . 8 8 . . . . 6 8 11 Protection 7 | . . . 4 10 15 17 15 11 5 8 . Energy Gun 1 | . . . 8 . . . . . . . . Ballistic Gun 14 | . 28 23 11 14 20 19 10 20 5 3 . Launcher 1 | . . 1 . . . 2 . 1 1 2 . Slashing Weapon 2 | . . . 5 5 . . . . 7 2 . Peak Build Rating 78 | 8 12 12 41 48 50 49 48 53 68 78 24 Average Rating 39 | 5 10 10 26 44 47 47 39 45 56 69 19 On Entrance 32 | . 8 12 12 35 45 49 48 48 46 67 19 Avg Prop Armor Cover (%) 7 | . . 8 6 . 5 . . 8 8 3 . Naked Turns . | . . . . . . . . . . . . Heaviest Build 85 | 12 20 22 48 58 52 52 45 48 76 85 . Greatest Support 98 | 40 40 40 64 71 71 67 67 72 98 93 10 Greatest Overweight (x) 11 | 3 . 2 11 . 1 . . 4 4 1 . Average Overweight (x) . | . . . . . . . . . . . . Largest Inventory Capacity 15 | 8 10 10 15 15 15 15 15 15 15 15 5 Average Capacity 13 | 7 9 10 12 15 15 15 15 15 14 14 5 Most Carried 15 | 8 10 10 15 15 15 15 15 15 15 15 5 Average Carried 12 | 5 9 9 12 14 14 14 15 12 13 12 4 Final Capacity 15 | 8 10 10 15 15 15 15 15 15 15 5 5 Final Carried 15 | 8 10 10 15 15 15 15 15 11 15 5 5 Class Distribution -------------------- 24% | Mutant 21% | Tank 11% | Scavenger-Mutant 10% | Hacker-Mutant 10% | Scavenger-Tank 7% | Scavenger-Gladiator 6% | Gunner 3% | Hacker-Gladiator Dominant Class ---------------- Mutant | -10/Materials Mutant | -10/Subcaves Scavenger-Mutant | -8/Materials Tank | -7/Factory Tank | -7/Lower Caves Tank | -7/Lower Caves Mutant | -7/Data Miner Gunner | -6/Proximity Caves Scavenger-Mutant | -6/Factory Scavenger-Gladiator | -5/Factory Hacker-Mutant | -5/Extension Resources | -11 -10 -10 -8 -7 -7 -7 -7 -6 -6 -5 -5 ----------- Run | Yrd Mat Sub Mat Fac Low Low Dat Pro Fac Fac Ext Matter Collected 5585 | 386 133 446 999 924 671 324 . 552 778 359 13 Remotely . | . . . . . . . . . . . . Salvage Created 6969 | 198 151 201 1398 988 358 450 . 549 1877 753 46 Parts 381 | 17 12 19 76 60 18 13 . 24 98 38 6 Haulers Intercepted 7 | . . . 6 . . . . . 1 . . Recyclers Shooed 4 | 1 . . 1 . . . . . 2 . . Parts Field Recycled . | . . . . . . . . . . . . Retrieved Matter . | . . . . . . . . . . . . Parts Self-Destructed 52 | . . 6 . . 11 11 . 24 . . . Prevented 3 | . . . . . . . . 3 . . . Parts Restored . | . . . . . . . . . . . . Kills | -11 -10 -10 -8 -7 -7 -7 -7 -6 -6 -5 -5 ------- Run | Yrd Mat Sub Mat Fac Low Low Dat Pro Fac Fac Ext Combat Hostiles Destroyed 109 | . 4 9 14 12 13 11 . 11 21 11 3 Melee 24 | . . . 3 5 . . . . 12 4 . Guns 44 | . 4 3 9 7 4 4 . 7 3 3 . Cannons 5 | . . . . . . . . . 3 2 . AOE 34 | . . 6 . . 9 7 . 4 3 2 3 Classes Destroyed 19 | 2 3 3 5 1 1 3 . 1 . . . Worker 14 | . . . 9 . . . . . 3 2 . Builder 8 | . . . 1 . . . . . 3 4 . Tunneler 12 | 7 . . 2 1 . . . . 2 . . Hauler 7 | . . . 6 . . . . . 1 . . Recycler 13 | 1 . . 1 5 . . . . 4 2 . Minesweeper 2 | . . . . . 1 1 . . . . . Operator 4 | . . 1 1 2 . . . . . . . Watcher 5 | . 1 . 2 . . . . . 1 1 . Swarmer 20 | . 2 . . . 4 2 . 3 3 3 3 Grunt 38 | . 2 . 6 6 6 2 . 5 8 3 . Brawler 5 | . . . . . . 3 . 1 . 1 . Duelist 2 | . . . . . . 1 . . 1 . . Protector 1 | . . . . . . 1 . . . . . Sentry 12 | . . . 4 1 1 1 . 1 3 1 . Hunter 11 | . . . 4 1 2 1 . . 2 1 . Programmer 10 | . . . . 4 . . . . 4 2 . Behemoth 1 | . . . . . . . . 1 . . . Artisan 1 | . . 1 . . . . . . . . . Subdweller 9 | . . 9 . . . . . . . . . Best Kill Streak 7 | 2 2 3 5 6 5 7 . 3 6 6 3 Combat Bots Only 7 | . 2 3 4 4 5 7 . 3 4 3 3 Max Kills in Single Turn 4 | 1 1 1 2 1 2 2 . 3 4 1 2 Gunslinging 1 | . . . . . . 1 . . . . . Exploded 3 | . . 1 . . 2 2 . 3 3 1 2 Melee 1 | . . . 1 1 . . . . 1 1 . Uniques/NPCs Destroyed . | . . . . . . . . . . . . Combat | -11 -10 -10 -8 -7 -7 -7 -7 -6 -6 -5 -5 -------- Run | Yrd Mat Sub Mat Fac Low Low Dat Pro Fac Fac Ext Hostile Shots Fired 885 | . 20 51 126 103 47 23 . 72 171 237 35 Missed 251 | . 7 8 33 24 13 6 . 26 53 68 13 Hits 634 | . 13 43 93 79 34 17 . 46 118 169 22 Melee 13 | . . . 2 . . . . 3 3 5 . Projectile 621 | . 13 43 91 79 34 17 . 43 115 164 22 Critical Strikes 31 | . 1 2 5 6 . . . 2 4 9 2 Part Disruptions 2 | . . . . . 2 . . . . . . Damage Taken 12837 | . 160 953 1708 1143 776 373 . 1074 1885 4197 568 Core 2074 | . 11 175 284 102 78 65 . 118 227 588 426 Absorbed by Shields . | . . . . . . . . . . . . Redirected to Shielding 20 | . . . 20 . . . . . . . . Regen/Repaired (Parts) 306 | . . . . . . . . . 306 . . Core Remaining (%) 58 | 100 . 25 48 . . . . 48 73 . . Volleys Fired 297 | 29 17 50 52 29 23 13 . 30 21 30 3 Largest 3 | 2 2 2 3 3 3 3 . 3 3 3 1 Hottest 150 | 40 46 100 150 84 84 95 . 95 98 103 43 Shots Fired 644 | 58 34 83 130 74 49 23 . 81 44 66 2 Gun 557 | 58 34 66 126 68 40 16 . 78 27 44 . Cannon 41 | . . . . 6 . . . . 16 19 . Launcher 42 | . . 13 4 . 9 7 . 3 1 3 2 Special 4 | . . 4 . . . . . . . . . Kinetic 561 | 58 34 66 91 74 40 16 . 78 43 61 . Thermal 17 | . . 4 13 . . . . . . . . Explosive 38 | . . 13 . . 9 7 . 3 1 3 2 Electromagnetic 28 | . . . 26 . . . . . . 2 . Robot Hit Streak 33 | 6 6 12 8 25 11 10 . 33 20 15 1 Robot Miss Streak 5 | 5 4 3 4 1 1 1 . 1 3 3 3 Penetration Max 1 | . . . . . . . . . . 1 . Secondary Targets 5 | . 1 1 1 . . 1 . 1 . . . Max Gunslinging Chain 1 | . 1 1 1 . . 1 . 1 . . . Shots Hit Robots 570 | 32 15 63 118 71 37 19 . 67 88 59 1 Core Hits 287 | 16 7 27 45 31 30 29 . 28 44 27 3 Critical Kills . | . . . . . . . . . . . . Critical Parts Destroyed 4 | . . 1 2 . . . . . . 1 . Critical Strikes 21 | . . 2 4 2 . . . . 8 5 . Burn 1 | . . . 1 . . . . . . . . Destroy 2 | . . 2 . . . . . . . . . Blast 5 | . . . . . . . . . 2 3 . Smash 3 | . . . 2 . . . . . . 1 . Sever 10 | . . . 1 2 . . . . 6 1 . Melee Attacks 231 | . . . 52 47 . 1 . . 95 36 . Impact 31 | . . . 13 . . . . . . 18 . Slashing 200 | . . . 39 47 . 1 . . 95 18 . Piercing . | . . . . . . . . . . . . Sneak Attacks 38 | . . . 12 4 . 1 . . 15 6 . Combat Hostiles . | . . . . . . . . . . . . Follow-up Attacks 11 | . . . . 5 . . . . 6 . . Damage Inflicted 20372 | 306 221 1751 3579 2280 1724 1477 . 1690 4300 2815 229 Guns 6819 | 306 218 692 1373 1014 544 250 . 1299 413 710 . Cannons 641 | . . . . . . . . . 200 441 . Explosions 5278 | . . 1059 468 . 1180 1167 . 391 230 554 229 Melee 7631 | . . . 1738 1266 . 60 . . 3457 1110 . Ramming 3 | . 3 . . . . . . . . . . Kinetic 6869 | 306 218 692 855 1014 544 250 . 1299 613 1078 . Thermal 333 | . . . 263 . . . . . . 70 . Explosive 4997 | . . 1059 257 . 1180 1167 . 391 230 484 229 Electromagnetic 539 | . . . 466 . . . . . . 73 . Impact 1062 | . . . 600 . . . . . . 462 . Slashing 6569 | . . . 1138 1266 . 60 . . 3457 648 . Piercing . | . . . . . . . . . . . . Highest Corruption 12 | . . . . 4 4 4 4 8 1 12 12 Average Corruption 4 | . . . . 2 4 4 4 6 1 7 12 Corruption Purged . | . . . . . . . . . . . . Corruption Blocked . | . . . . . . . . . . . . Effects 124 | . . . . 12 29 15 2 34 10 20 2 Message Errors 36 | . . . . 4 7 3 1 15 . 6 . Matter Fused 28 | . . . . 5 7 2 1 6 4 3 . Heat Flow Errors 11 | . . . . . 3 2 . 1 3 2 . Energy Discharges 13 | . . . . 1 4 3 . 1 . 4 . Parts Rejected 2 | . . . . . . . . 2 . . . Parts Fused 2 | . . . . . . . . 1 1 . . Data Loss (minor) 14 | . . . . 1 4 3 . 4 . 1 1 Data Loss (major) 9 | . . . . 1 1 . . 2 1 4 . Misfires 3 | . . . . . 2 . . . 1 . . Alerts 2 | . . . . . 1 1 . . . . . Weapon Failures 4 | . . . . . . 1 . 2 . . 1 Overload Shots . | . . . . . . . . . . . . Overflow Damage 1486 | . . 14 383 121 48 5 . . 410 505 . Projectiles 41 | . . . . . . . . . . 41 . Explosions 74 | . . 14 4 . 48 5 . . . 3 . Melee 1371 | . . . 379 121 . . . . 410 461 . Knockbacks 8 | . . . 4 . . . . . . 4 . Impact 5 | . . . 4 . . . . . . 1 . Kinetic 3 | . . . . . . . . . . 3 . Secondary . | . . . . . . . . . . . . Self-Inflicted Damage 561 | . . 39 15 . 101 65 . . . 231 110 Shots 15 | . . 1 1 . 4 3 . . . 4 2 Rammed 1 | . 1 . . . . . . . . . . Targets Rammed 1 | . 1 . . . . . . . . . . Kicked . | . . . . . . . . . . . . Crushed . | . . . . . . . . . . . . Highest Temperature 359 | . 22 . 225 36 278 359 . 190 237 315 . Average Temperature 77 | . 11 . 46 15 111 183 . 54 49 113 . Received Heat Transfer 2943 | . 81 210 432 309 126 63 . 231 618 801 72 Effects 1 | . . . . . . 1 . . . . . Shutdowns 1 | . . . . . . 1 . . . . . Siege Activations . | . . . . . . . . . . . . Martial Activations . | . . . . . . . . . . . . Shielding Activations . | . . . . . . . . . . . . Robots Disrupted . | . . . . . . . . . . . . Combat Hostiles . | . . . . . . . . . . . . Robots Corrupted 6 | . . . 5 . . . . . . 1 . Combat Hostiles 2 | . . . 2 . . . . . . . . Parts Fried 9 | . . . 4 . . . . . . 5 . Impact Corruptions 16 | . . . 9 . . . . . . 7 . Robots Melted . | . . . . . . . . . . . . Combat Hostiles . | . . . . . . . . . . . . Parts Melted 1 | . . . 1 . . . . . . . . Heat Transferred 520 | . . . 470 . . . . . . 50 . Parts Sabotaged . | . . . . . . . . . . . . Parts Stolen . | . . . . . . . . . . . . Parts Stripped . | . . . . . . . . . . . . Power Chain Reactions 2 | . . . 1 . . . . . . 1 . Alert | -11 -10 -10 -8 -7 -7 -7 -7 -6 -6 -5 -5 ------- Run | Yrd Mat Sub Mat Fac Low Low Dat Pro Fac Fac Ext Maximum Alert Level 1 | . . . . . . . . . 1 . . Low Security (%) 98 | 100 100 . 100 100 . . . . 94 100 100 Level 1 1 | . . . . . . . . . 5 . . Level 2 . | . . . . . . . . . . . . Level 3 . | . . . . . . . . . . . . Level 4 . | . . . . . . . . . . . . Level 5 . | . . . . . . . . . . . . High Security . | . . . . . . . . . . . . Max Security . | . . . . . . . . . . . . Peak Influence 207 | 10 61 . 70 153 . . . . 207 164 130 Initial 93 | . . . . 4 . . . . . 93 28 Average 43 | . 15 . 19 54 . . . . 87 30 34 Influence Increases 3490 | 40 148 . 575 498 305 287 . 285 720 510 122 Destroy 0b10 Robot/C 2040 | . 80 . 280 240 260 240 . 240 420 220 60 Destroy 0b10 Robot/NC 325 | 40 5 . 110 40 5 10 . . 70 45 . Destroy Leader 474 | . 12 . 96 80 40 20 . 40 124 52 10 Allied During Kill 22 | . . . . . . 17 . 5 . . . Successful Hack 113 | . 20 . 19 43 . . . . 21 10 . Disable Machine 120 | . . . 30 45 . . . . 45 . . Destroy Structure 201 | . 1 . 25 20 . . . . 25 78 52 Partial Spotted 15 | . . . . . . . . . . 15 . Lose Combat Pursuer 180 | . 30 . 15 30 . . . . 15 90 . Influence Decreases 3380 | 40 148 . 563 369 420 287 26 285 530 641 71 Entered New Map 221 | . . . . 8 53 6 26 . . 97 31 Time Decay 2614 | 40 148 . 446 341 367 261 . 230 472 279 30 Lost Part 319 | . . . 94 20 . . . 22 58 115 10 Lost Ally 53 | . . . . . . 20 . 33 . . . Purge Threat 173 | . . . 23 . . . . . . 150 . Squads Dispatched 18 | . . . . 3 . 1 . . 9 5 . Investigation 6 | . . . . 1 . . . . 3 2 . Extermination 8 | . . . . 2 . . . . 4 2 . Reinforcement 3 | . . . . . . . . . 2 1 . Assault 1 | . . . . . . 1 . . . . . Garrison . | . . . . . . . . . . . . Intercept . | . . . . . . . . . . . . Searches Triggered . | . . . . . . . . . . . . Data Miner Redirects 2 | . . . . . . . . . 1 1 . Construction Impeded 1 | . . . . . . . . . . 1 . Haulers Reinforced . | . . . . . . . . . . . . Active Scanning Responses . | . . . . . . . . . . . . Cargo Convoy Interrupts . | . . . . . . . . . . . . Stealth | -11 -10 -10 -8 -7 -7 -7 -7 -6 -6 -5 -5 --------- Run | Yrd Mat Sub Mat Fac Low Low Dat Pro Fac Fac Ext Distress Signals 5 | . 1 . . . . . . . 3 1 . Communications Jammed 7 | . . . . . . . . . 7 . . Distress Signals 7 | . . . . . . . . . 7 . . Times Spotted 175 | . 11 11 25 20 13 13 . 12 36 25 9 Peak Tracking Total 10 | . 3 3 4 3 5 7 . 4 5 8 10 Tactical Retreats 11 | . 2 1 1 2 . . . . 1 4 . Traps | -11 -10 -10 -8 -7 -7 -7 -7 -6 -6 -5 -5 ------- Run | Yrd Mat Sub Mat Fac Low Low Dat Pro Fac Fac Ext Traps Triggered 5 | . . . . 1 1 . . . . 1 2 Indirectly . | . . . . . . . . . . . . Trap Hack Attempts . | . . . . . . . . . . . . Triggered . | . . . . . . . . . . . . Disarmed . | . . . . . . . . . . . . Reprogrammed . | . . . . . . . . . . . . Reused . | . . . . . . . . . . . . Traps Extracted . | . . . . . . . . . . . . Installed . | . . . . . . . . . . . . Triggered . | . . . . . . . . . . . . Most Traps Carried 3 | . . 2 2 . 3 . . . . . . Machines | -11 -10 -10 -8 -7 -7 -7 -7 -6 -6 -5 -5 ---------- Run | Yrd Mat Sub Mat Fac Low Low Dat Pro Fac Fac Ext Machines Disabled 10 | . . . 2 3 1 1 . . 3 . . Max in Single Turn 1 | . . . 1 1 1 1 . . 1 . . Garrison Access 2 | . . . . 1 . . . . 1 . . Machines Repaired . | . . . . . . . . . . . . Machines Dismantled . | . . . . . . . . . . . . Machines Sabotaged . | . . . . . . . . . . . . Overloaded Fab Kills . | . . . . . . . . . . . . Hacking | -11 -10 -10 -8 -7 -7 -7 -7 -6 -6 -5 -5 --------- Run | Yrd Mat Sub Mat Fac Low Low Dat Pro Fac Fac Ext Machines Accessed 45 | . 4 2 7 12 1 . 4 . 10 4 1 Terminals 29 | . 4 . 7 8 . . . . 6 3 1 Fabricators 4 | . . . . 2 . . . . 1 1 . Repair Stations 1 | . . . . . . . . . 1 . . Recycling Units . | . . . . . . . . . . . . Scanalyzers 2 | . . . . 1 . . . . 1 . . Garrison Access 2 | . . . . 1 . . . . 1 . . Total Hacks 154 | . 15 3 28 38 1 . 32 . 28 8 1 Successful 100 | . 8 3 15 22 1 . 32 . 16 3 . Failed 53 | . 7 . 13 16 . . . . 11 5 1 Catastrophic 6 | . . . . . . . . . 3 2 1 Database Lockouts 1 | . . . . . . . . . 1 . . Manual 51 | . 8 . 16 20 . . . . 6 1 . Terminals 97 | . 15 . 28 30 . . . . 17 6 1 Fabricators 9 | . . . . 4 . . . . 3 2 . Repair Stations 4 | . . . . . . . . . 4 . . Recycling Units . | . . . . . . . . . . . . Scanalyzers 4 | . . . . 3 . . . . 1 . . Garrison Access 4 | . . . . 1 . . . . 3 . . Terminal Hacks 67 | . 6 3 8 9 1 . 32 . 7 1 . Record 16 | . . 1 . 2 . . 11 . 2 . . Part Schematic 12 | . . . . . . . 12 . . . . Robot Schematic 6 | . . . . . . . 6 . . . . Robot Analysis 5 | . 2 . 1 2 . . . . . . . Prototype ID Bank 7 | . 1 . 1 1 . . 3 . 1 . . Open Door 2 | . . 1 . . 1 . . . . . . Level Access Points 1 | . . . 1 . . . . . . . . Branch Access Points 3 | . . . 1 1 . . . . 1 . . Emergency Access Points 3 | . 1 . . 1 . . . . 1 . . Terminal Index 1 | . . . . 1 . . . . . . . Alert Level 2 | . 1 . 1 . . . . . . . . Unreport Threat 2 | . . . 1 . . . . . . 1 . Locate Traps 1 | . 1 . . . . . . . . . . Recall Investigation 1 | . . . . . . . . . 1 . . Hauler Manifests 1 | . . . 1 . . . . . . . . Registered Prototypes 1 | . . . 1 . . . . . . . . Zone Layout 2 | . . . . 1 . . . . 1 . . Release Object 1 | . . 1 . . . . . . . . . Fabricator Hacks 7 | . . . . 2 . . . . 3 2 . Network Status 3 | . . . . 2 . . . . 1 . . Load Schematic 2 | . . . . . . . . . 1 1 . Build 2 | . . . . . . . . . 1 1 . Repair Station Hacks 4 | . . . . . . . . . 4 . . Scan Component 2 | . . . . . . . . . 2 . . Repair 2 | . . . . . . . . . 2 . . Recycling Unit Hacks . | . . . . . . . . . . . . Scanalyzer 1 | . . . . 1 . . . . . . . Retrieve Study 1 | . . . . 1 . . . . . . . Garrison Access Hacks 2 | . . . . 1 . . . . 1 . . Seal Access 2 | . . . . 1 . . . . 1 . . Unauthorized Hacks 19 | . 2 . 7 9 . . . . 1 . . Terminals 19 | . 2 . 7 9 . . . . 1 . . Assimilate 1 | . 1 . . . . . . . . . . Botnet 8 | . 1 . 2 4 . . . . 1 . . Skim 10 | . . . 5 5 . . . . . . . Fabricators . | . . . . . . . . . . . . Repair Stations . | . . . . . . . . . . . . Recycling Units . | . . . . . . . . . . . . Scanalyzers . | . . . . . . . . . . . . Garrison Access . | . . . . . . . . . . . . Data Cores Recovered 1 | . . . . 1 . . . . . . . Used . | . . . . . . . . . . . . Hacking Detections 36 | . 4 . 7 10 . . . . 10 4 1 Full Trace Events 5 | . . . . . . . . . 3 2 . Feedback Events . | . . . . . . . . . . . . Feedback Blocked . | . . . . . . . . . . . . Robot Schematics Acquired 6 | . . . . . . . 6 . . . . Robots Built . | . . . . . . . . . . . . Authchips . | . . . . . . . . . . . . Time . | . . . . . . . . . . . . Total Robot Build Rating . | . . . . . . . . . . . . Part Schematics Acquired 12 | . . . . . . . 12 . . . . Parts Built 2 | . . . . . . . . . 1 1 . Authchips . | . . . . . . . . . . . . Time 205 | . . . . . . . . . 152 53 . Total Part Build Rating 11 | . . . . . . . . . 5 6 . Part Studies Acquired 1 | . . . . 1 . . . . . . . Parts Repaired 2 | . . . . . . . . . 2 . . Time 114 | . . . . . . . . . 114 . . Parts Recycled . | . . . . . . . . . . . . Recycled Matter . | . . . . . . . . . . . . Retrieved Matter . | . . . . . . . . . . . . Retrieved Components . | . . . . . . . . . . . . Parts Scanalyzed . | . . . . . . . . . . . . Part Schematics Acquired . | . . . . . . . . . . . . Parts Damaged . | . . . . . . . . . . . . Bothacking | -11 -10 -10 -8 -7 -7 -7 -7 -6 -6 -5 -5 ------------ Run | Yrd Mat Sub Mat Fac Low Low Dat Pro Fac Fac Ext Used RIF Installer . | . . . . . . . . . . . . Robots Hacked . | . . . . . . . . . . . . Non-combat . | . . . . . . . . . . . . Combat . | . . . . . . . . . . . . Robot Hacks Applied . | . . . . . . . . . . . . Relay Couplers Released . | . . . . . . . . . . . . Fabnet Peak Effective % . | . . . . . . . . . . . . Robots Rewired 3 | . . . . . 1 2 . . . . . Allies Hacked . | . . . . . . . . . . . . Hacks Repelled . | . . . . . . . . . . . . Allies | -11 -10 -10 -8 -7 -7 -7 -7 -6 -6 -5 -5 -------- Run | Yrd Mat Sub Mat Fac Low Low Dat Pro Fac Fac Ext Total Allies 4 | . 1 . . . 1 2 . . . . . Largest Group 2 | . 1 1 . . 1 2 2 2 . . . Highest-Rated Group 50 | . 10 10 . . 20 50 50 50 . . . Highest-Rated Ally 30 | . 10 10 . . 20 30 30 30 . . . Total Orders . | . . . . . . . . . . . . Ally Attacks 12 | . . . . . . 8 . 4 . . . Total Damage 297 | . . . . . . 206 . 91 . . . Kills 3 | . . . . . . 2 . 1 . . . Allies Corrupted . | . . . . . . . . . . . . Allies Melted . | . . . . . . . . . . . . Intel | -11 -10 -10 -8 -7 -7 -7 -7 -6 -6 -5 -5 ------- Run | Yrd Mat Sub Mat Fac Low Low Dat Pro Fac Fac Ext Active Infowar (turns) 6881 | 31 425 959 510 840 644 455 138 474 1275 1130 . Sensors 415 | . . . . . . . . . 415 . . Terrain 272 | . . . . . . . . . 272 . . Seismic 5855 | 31 425 959 510 840 644 455 138 473 250 1130 . Jamming 600 | . . . . . . . . 1 599 . . Robot Analysis Total 5 | . 2 . 1 2 . . . . . . . Derelict Logs Recovered 7 | . . 1 . . 1 2 . 3 . . . Drone Launches . | . . . . . . . . . . . . Drone Recoveries . | . . . . . . . . . . . . Exploration | -11 -10 -10 -8 -7 -7 -7 -7 -6 -6 -5 -5 ------------- Run | Yrd Mat Sub Mat Fac Low Low Dat Pro Fac Fac Ext Turns Passed 12197 | 357 710 1280 1938 1506 1118 840 138 1131 1849 1264 66 Spaces Moved 6821 | 167 386 737 962 966 716 618 107 557 847 688 70 Core 114 | 16 . . 8 . . . . . . 81 9 Treads 1381 | 151 386 589 . . . . . . 255 . . Legs 4478 | . . . 797 966 716 618 107 461 283 530 . Wheels 700 | . . 148 147 . . . . 96 309 . . Hover 148 | . . . 10 . . . . . . 77 61 Flight . | . . . . . . . . . . . . Fastest Speed 38 | 50 160 80 38 115 118 121 121 121 115 50 50 Average Speed 136 | 154 160 149 150 117 129 121 121 145 153 118 58 Slowest Speed 600 | 200 160 160 600 127 195 123 121 192 400 190 60 Overloaded Moves . | . . . . . . . . . . . . Propulsion Burnouts . | . . . . . . . . . . . . Robots Hopped . | . . . . . . . . . . . . Potential Cave-ins . | . . . . . . . . . . . . Cave-ins Triggered . | . . . . . . . . . . . . Exploration Rate (%) 45 | 10 52 49 68 30 79 60 74 67 21 15 16 Regions Visited 11 Branch Regions 6 Pre-discovered Areas 7 | . . . 2 3 . . 1 1 . . . Known Exits Taken 5 | . . . 1 1 . . . 1 1 1 . Unknown Exits Taken 6 | 1 1 1 . . 1 1 1 . . . . Scrap Searched 14 | . . 5 . . 5 2 . 2 . . . Spaces Dug 82 | . . . 7 17 . . . 30 16 12 . Terrain Destroyed 423 | . . 60 27 17 100 70 . 38 21 44 46 Melee 45 | . . . 7 12 . . . . 14 12 . Projectile 19 | . . . . 5 1 . . . 3 10 . AOE 359 | . . 60 20 . 99 70 . 38 4 22 46 Terrain Rammed . | . . . . . . . . . . . . Walls Destroyed . | . . . . . . . . . . . . Machines Disabled . | . . . . . . . . . . . . Actions | -11 -10 -10 -8 -7 -7 -7 -7 -6 -6 -5 -5 --------- Run | Yrd Mat Sub Mat Fac Low Low Dat Pro Fac Fac Ext Total 8804 | 210 448 816 1290 1203 863 691 115 811 1235 1030 92 Wait 822 | . 30 2 42 75 86 22 3 208 138 216 . Move 6810 | 166 385 736 961 965 715 617 106 556 846 687 70 Hop . | . . . . . . . . . . . . Pick Up 139 | 8 4 8 42 18 5 5 . . 39 10 . Fast Attach 101 | 7 1 . 36 10 2 3 3 6 26 6 1 Attach 62 | . . 7 10 4 3 1 . 4 14 18 1 Detach 24 | . 1 . 6 . . 1 . . 11 4 1 Swap 135 | . 3 11 31 33 14 7 . 5 19 12 . Drop 161 | . 6 1 59 28 7 8 3 2 36 11 . Fire 297 | 29 17 50 52 29 23 13 . 30 21 30 3 Melee 214 | . . . 51 41 . 1 . . 85 36 . Ram . | . . . . . . . . . . . . Kick . | . . . . . . . . . . . . Crush 1 | . 1 . . . . . . . . . . Escape Stasis 16 | . . . . . . . . . . . 16 Rewire 21 | . . . . . 8 13 . . . . . Trap . | . . . . . . . . . . . . Miscellaneous 1 | . . 1 . . . . . . . . . Route ------- -11/Scrapyard -10/Materials (discovered 2 exits: [*Mat] / *Sub) -10/Subcaves -8/Materials (discovered 3 exits: *Fac x3) -7/Factory (discovered 5 exits: Fac / Sto x2 / *Low x2) -7/Lower Caves -7/Lower Caves -7/Data Miner -6/Proximity Caves -6/Factory (discovered 4 exits: *Fac x2 / Low x2) -5/Factory -5/Extension (discovered 3 exits: Fac x2 / Cet) History --------- Turn | Location | Event 19 | -11/Scrapyard | Discovered new exit (range 15) 358 | -11/Scrapyard | Entered Materials 359 | -10/Materials | Build established: Mutant 818 | -10/Materials | Discovered new exit (range 7) 1052 | -10/Materials | Discovered new exit (range 8) 1068 | -10/Materials | Entered Subcaves 1068 | -10/Subcaves | Accompanied by 1 ally 1222 | -10/Subcaves | Learned Materials stockpile data 1262 | -10/Subcaves | Released subatomizers from SUBCON Basin 1571 | -10/Subcaves | Ambushed by angry Subdweller bent on revenge 1788 | -10/Subcaves | Shifting Twisted Machinery released Barrage Gun 1788 | -10/Subcaves | Shifting Twisted Machinery released Scrap Shield 1894 | -10/Subcaves | Ambushed by Subdwellers from Twisted Machinery 1984 | -10/Subcaves | Discovered new exit (range 8) 2116 | -10/Subcaves | Core integrity fell below 50% 2165 | -10/Subcaves | Lost 6 parts (3n3w) 2228 | -10/Subcaves | Disturbed a concealed Subdweller 2348 | -10/Subcaves | Entered Materials 2348 | -8/Materials | Evolved 4 slots: Propulsion x2, Utility x1, Weapon x1 2466 | -8/Materials | Lost 5 parts (1p2n1u1w) 2749 | -8/Materials | Build established: Scavenger-Mutant 3055 | -8/Materials | Lost 5 parts (4n1u) 3574 | -8/Materials | Identified exit to Factory 3629 | -8/Materials | Build established: Hacker-Mutant 3899 | -8/Materials | Learned 8 Factory zone layouts 3900 | -8/Materials | Core integrity fell below 50% 3930 | -8/Materials | Lost 3 parts (2n1u) 3952 | -8/Materials | Learned location of 1 exit from Extension 4071 | -8/Materials | Learned location of 1 exit from Storage 4244 | -8/Materials | Build established: Tank 4286 | -8/Materials | Entered Factory 4286 | -7/Factory | Evolved 2 slots: Utility x2 5156 | -7/Factory | Learned Extension machine intel 5233 | -7/Factory | Learned location of Zion (-6) 5300 | -7/Factory | Identified exit to Factory 5313 | -7/Factory | Identified exit to Storage 5313 | -7/Factory | Identified exit to Lower Caves 5358 | -7/Factory | Learned Hub_04(d) terminal intel 5405 | -7/Factory | Learned location of Proximity Caves (-3) 5444 | -7/Factory | Learned 4 Upper Caves zone layouts 5475 | -7/Factory | Learned 4 Extension zone layouts 5518 | -7/Factory | Learned location of Extension (-5) 5625 | -7/Factory | Build established: Hacker-Mutant 5634 | -7/Factory | Learned location of 1 exit from Proximity Caves 5708 | -7/Factory | Learned location of 1 exit from Cetus 5792 | -7/Factory | Entered Lower Caves 6382 | -7/Lower Caves | Build established: Tank 6425 | -7/Lower Caves | Discovered new exit (range 14) 6533 | -7/Lower Caves | Attracted the attention of an 0b10 outpost 6686 | -7/Lower Caves | Encountered a Warlord checkpoint 6730 | -7/Lower Caves | Learned Factory security intel 6834 | -7/Lower Caves | Build established: Scavenger-Tank 6910 | -7/Lower Caves | Entered another Lower Caves area 6910 | -7/Lower Caves | Accompanied by 1 ally 7199 | -7/Lower Caves | Attracted the attention of an 0b10 outpost 7247 | -7/Lower Caves | Destroyed 7 combat bots 7275 | -7/Lower Caves | Build established: Tank 7353 | -7/Lower Caves | Learned Factory trap positions 7433 | -7/Lower Caves | Discovered new exit (range 5) 7648 | -7/Lower Caves | Learned Factory emergency access door positions 7750 | -7/Lower Caves | Entered Data Miner 7750 | -7/Data Miner | Accompanied by 2 allies 7750 | -7/Data Miner | Discovered new exit (range 6) 7782 | -7/Data Miner | Met Data Miner 7808 | -7/Data Miner | Learned location of Section 7 (-2) 7808 | -7/Data Miner | Acquired the access code to Warlord's prototype stash 7829 | -7/Data Miner | Received God Mode back door access code from Data Miner 7888 | -7/Data Miner | Entered Proximity Caves 7888 | -6/Proximity Caves | Accompanied by 2 allies 7894 | -6/Proximity Caves | Attracted the attention of an 0b10 checkpoint 7916 | -6/Proximity Caves | Learned 12 Factory zone layouts 8149 | -6/Proximity Caves | Spotted B-75 Beast 8273 | -6/Proximity Caves | Build established: Scavenger-Tank 8504 | -6/Proximity Caves | Core integrity fell below 50% 8505 | -6/Proximity Caves | Destroyed B-75 Beast 8531 | -6/Proximity Caves | Lost 5 parts (1p1n2u1w) 8797 | -6/Proximity Caves | Build established: Gunner 9019 | -6/Proximity Caves | Entered Factory 9019 | -6/Factory | Evolved 2 slots: Power x1, Utility x1 9020 | -6/Factory | Identified exit to Lower Caves 9021 | -6/Factory | Identified exit to Factory 9022 | -6/Factory | Loaded intel: 92 trap records 9170 | -6/Factory | Lost 4 parts (1n2u1w) 9271 | -6/Factory | Found Powered Armor 9549 | -6/Factory | Build established: Hacker-Gladiator 9604 | -6/Factory | Fabricated Lgt. Regenerative Plating? 9872 | -6/Factory | Repaired Prc. Assault Rifle? 9934 | -6/Factory | Incoming investigation squad redirected 9939 | -6/Factory | Repaired Greatsword 10234 | -6/Factory | Build established: Scavenger-Mutant 10759 | -6/Factory | Found Prototype Launcher 10759 | -6/Factory | Identified Scatter Rocket Array 10780 | -6/Factory | Central database locked down 10861 | -6/Factory | Build established: Scavenger-Gladiator 10868 | -6/Factory | Entered another Factory area 10868 | -5/Factory | Evolved 2 slots: Propulsion x1, Utility x1 10869 | -5/Factory | Identified exit to Extension 11066 | -5/Factory | Fabricated Adv. Hacking Suite? 11481 | -5/Factory | Lost 3 parts (3w) 12034 | -5/Factory | System corruption reached 10% 12070 | -5/Factory | Lost 21 parts (4p6n7u4w) 12097 | -5/Factory | Core integrity fell below 50% 12118 | -5/Factory | Incoming investigation squad redirected 12132 | -5/Factory | Entered Extension 12133 | -5/Extension | Identified exit to Factory 12134 | -5/Extension | Identified exit to Cetus 12135 | -5/Extension | Loaded intel: 31 machine locations 12163 | -5/Extension | Build established: Hacker-Mutant 12194 | -5/Extension | Core integrity fell below 20% 12198 | -5/Extension | Destroyed by S-27 Virus with Autogun Last Messages --------------- 12165_ Stasis field depleted. 12167_ Penetrated by Slug. 12177_ Connecting with Terminal... 12182_ Y-64 Sentinel springs to life. 12182_ Slug penetrates Wall. 12182_ Y-64 Sentinel springs to life. 12186_ S-27 Virus destroyed. 12188_ System corrupted: Prc. Rocket Launcher failed to launch. 12190_ S-27 Virus destroyed. 12191_ Penetrated by Slug. 12191_ Imp. Gravmag System destroyed. 12192_ Critical hit (Burn: +37). 12192_ Penetrated by Slug. 12194_ Acquired 13 matter. 12195_ The unstable cave ceiling collapses. 12195_ Penetrated by Slug. 12197_ Acquired Phasing Sabre. 12197_ Penetrated by Slug. 12198_ The unstable cave ceiling collapses. Map ----- +----------------------------------------------------+ | | | | | | | | | | | | | | | | | | | ?????????????????????????????????????????????????? | | ?????????????????????????????????????????????????? | | ?????????????????????????????????????????????????? | | ?????????????????????????????????????????????????? | | ##???????????????? ????????????????????????????? | | #???????????????# ???????????????????????????? | | #???????????????# ???????????????????????????? | | #???????????????# ?????? #???????????????????? | | #???????????????# ?????? ????????????????????? | | #???????????????# ?????? ????????????????????? | | #???????????????# #????? ?????????????????????? | | #???????????????# ######+#####?????????????????? | | ?????????######## ## / #?????????????????? | | ########### [ ## ## g +?????????????????? | | ## ## b #?????????????????? | | T ## [lh * #?????????????????? | | ^ s @ +?????????????????? | | # Y #?????????????????? | | ### [ #?????????????????? | | * Y #?????????????????? | | ############"T #########?????????????????? | | #??????????#""# #?????????????????????????? | | #??????????#### ##?????????????????????????? | | #?????????????## # ####??????????????????????????? | | #??????????????#####?????????????????????????????? | | #????????????????????????????????????????????????? | | #????????????????????????????????????????????????? | | #????????????????????????????????????????????????? | | #????????????????????????????????????????????????? | | #????????????????????????????????????????????????? | | #????????????????????????????????????????????????? | | #????????????????????????????????????????????????? | | #????????????????????????????????????????????????? | | #????????????????????????????????????????????????? | | #????????????????????????????????????????????????? | | #????????????????????????????????????????????????? | | ##########?????????????????????????????########### | | ???????????????????????????? | | ???????????????????????????? | | ???????????????????????????? | | ???????????????????????????? | +----------------------------------------------------+ Best States ------------- Heat Dissipation 61 Energy Generation 32 Energy Capacity 700 Matter Stores 300 Matter Capacity 300 Sight Range 16 Robot Scan Range 15 Terrain Scan Range 20 Terrain Scan Density 85 Jamming Range 12 Armor Coverage 900 Core Shielding 20 Melee Speed Boost 20 Evasion (%) 55 Targeting Accuracy 8 Melee Accuracy 6 Recoil Reduction 4 Offensive Hacking 25 Defensive Hacking 10 Trap Extractor Capacity 4 Item Schematics ----------------- Combat Drone Bay | -7/Data Miner | Free Lgt. Regenerative Plating | -7/Data Miner | Free Cld. Aerolev Unit | -7/Data Miner | Free Exp. Targeting Computer | -7/Data Miner | Free Imp. Heavy Laser | -7/Data Miner | Free Gyrokinetic Inverter | -7/Data Miner | Free Adv. Shield Generator | -7/Data Miner | Free Disruptor Cannon | -7/Data Miner | Free Force Field | -7/Data Miner | Free Adv. Hacking Suite | -7/Data Miner | Free Adv. Cooling System | -7/Data Miner | Free Lrn. Terrain Scanner | -7/Data Miner | Free Robot Schematics ------------------ Y-54 Guardian | -7/Data Miner | Free A-15 Conveyor | -7/Data Miner | Free E-15 Imp | -7/Data Miner | Free G-50 Soldier | -7/Data Miner | Free S-27 Virus | -7/Data Miner | Free M-22 Extractor | -7/Data Miner | Free Fabricated ------------ Lgt. Regenerative Plating | x1 | -6/Factory Adv. Hacking Suite | x1 | -5/Factory Repaired ---------- Prc. Assault Rifle | 6% | -6/Factory Greatsword | 1% | -6/Factory Studied --------- Titanium Leg | -7/Factory | Hacked Alien Tech Used ----------------- None Achievements -------------- None Challenges ------------ None Game ------ Seed ThermicAlertInverter Manual? 0 Play Time 02:54:56 Cumulative 70.2 hours Start 2025.11.13 @ 19:28:02 End 2025.11.14 @ 17:19:48 Sessions 4 Manual Loads 0 Difficulty Rogue Special Mode None Game No. 53 Rogue 53 Adventurer 0 Explorer 0 Win Type - Total 2 Types 1/0/0/1/0/0/0/0/0/0 Lore% 40 Gallery% 43 Achievement% 31 Wizard Run 0 Options --------- Layout 2 ASCII 0 Keyboard 1 Movement Vi Keybinds 0 Fullscreen 2 Font 24/Smallcaps Map View 50x44 Zoom Use 0% Tactical HUD 1 Map Filters NONE Filters NONE Steam 0 RUN: 89ff09f4-fd0b-425c-a184-392a0ef3385b